[Event "Rapid della Domenica"]
[Site "Chess.com"]
[Date "2020.05.24"]
[Round "3"]
[White "pedrak"]
[Black "malberici"]
[Result "1-0"]
[WhiteElo "1683"]
[BlackElo "1444"]
[TimeControl "720+3"]
[EndTime "7:05:21 PDT"]
[Termination "pedrak ha vinto per abbandono"]

1. d4 {[%clk 0:12:02.9]} 1... Nf6 {[%clk 0:11:56.4]} 2. Nf3 {[%clk 0:12:03.9]}
2... e6 {[%clk 0:11:56.9]} 3. Bf4 {[%clk 0:11:59.7]} 3... Bb4+ {[%clk
0:11:55.5]} 4. c3 {[%clk 0:12:00.7]} 4... Ba5 {[%clk 0:11:53.6]} 5. Nbd2 {[%clk
0:12:01.5]} 5... Nc6 {[%clk 0:11:52.1]} 6. e3 {[%clk 0:12:02.3]} 6... Bb6 {[%clk
0:11:43.4]} 7. Bd3 {[%clk 0:12:02.5]} 7... d6 {[%clk 0:11:40.1]} 8. Bg5 {[%clk
0:11:57.9]} 8... h6 {[%clk 0:11:37.1]} 9. Bh4 {[%clk 0:11:59]} 9... g5 {[%clk
0:11:24]} 10. Bg3 {[%clk 0:11:59.4]} 10... Nh5 {[%clk 0:11:13.7]} 11. Qe2 {[%clk
0:11:57]} 11... Nxg3 {[%clk 0:11:13.5]} 12. hxg3 {[%clk 0:11:58.5]} 12... Bd7
{[%clk 0:11:13.3]} 13. e4 {[%clk 0:11:54]} 13... Qe7 {[%clk 0:11:09.5]} 14. Nc4
{[%clk 0:11:53.3]} 14... g4 {[%clk 0:10:50.7]} 15. Nh4 {[%clk 0:11:44.8]} 15...
h5 {[%clk 0:10:46.6]} 16. Nxb6 {[%clk 0:11:40.3]} 16... cxb6 {[%clk 0:10:46.6]}
17. O-O {[%clk 0:11:39.2]} 17... O-O-O {[%clk 0:10:44.2]} 18. b4 {[%clk
0:11:32]} 18... Kb8 {[%clk 0:10:36.9]} 19. a4 {[%clk 0:11:32.8]} 19... Qf6
{[%clk 0:10:07]} 20. a5 {[%clk 0:11:27]} 20... bxa5 {[%clk 0:09:58.8]} 21. bxa5
{[%clk 0:11:26.7]} 21... Qg5 {[%clk 0:09:46.7]} 22. Rfb1 {[%clk 0:11:19.4]}
22... Bc8 {[%clk 0:09:25.1]} 23. Qb2 {[%clk 0:10:55]} 23... Nxa5 {[%clk
0:08:51.7]} 24. Ba6 {[%clk 0:10:44.6]} 24... Rd7 {[%clk 0:08:42.9]} 25. Bb5
{[%clk 0:10:42.2]} 25... b6 {[%clk 0:07:50]} 26. Bxd7 {[%clk 0:10:42.2]} 26...
Bxd7 {[%clk 0:07:47.5]} 27. d5 {[%clk 0:10:41.4]} 27... Qe5 {[%clk 0:07:22.3]}
28. Rxa5 {[%clk 0:10:37.9]} 28... Qxe4 {[%clk 0:07:19.2]} 29. Rxa7 {[%clk
0:10:25.5]} 29... Qxb1+ {[%clk 0:06:57.4]} 30. Qxb1 {[%clk 0:10:23.7]} 30...
Kxa7 {[%clk 0:06:59.2]} 31. Qb4 {[%clk 0:10:20.6]} 31... Rb8 {[%clk 0:06:48.7]}
32. Qxd6 {[%clk 0:10:21.4]} 32... Bb5 {[%clk 0:06:47.2]} 33. dxe6 {[%clk
0:10:20.1]} 33... fxe6 {[%clk 0:06:39.1]} 34. Qxe6 {[%clk 0:10:19.4]} 34... Re8
{[%clk 0:06:32.8]} 35. Qf7+ {[%clk 0:10:17.3]} 35... Ka6 {[%clk 0:06:29]} 36.
Qxh5 {[%clk 0:10:17.9]} 36... Re1+ {[%clk 0:06:19.2]} 37. Kh2 {[%clk 0:10:19.1]}
37... Re2 {[%clk 0:06:04.7]} 38. Qf5 {[%clk 0:10:15.5]} 38... Bc6 {[%clk
0:05:36.5]} 39. Qd3+ {[%clk 0:10:00.4]} 39... Bb5 {[%clk 0:05:36.1]} 40. c4
{[%clk 0:10:02.1]} 1-0

[Event "Rapid della Domenica"]
[Site "Chess.com"]
[Date "2020.05.24"]
[Round "3"]
[White "fausto2p"]
[Black "SanSecondoPR"]
[Result "0-1"]
[WhiteElo "1183"]
[BlackElo "1309"]
[TimeControl "720+3"]
[EndTime "7:08:11 PDT"]
[Termination "SanSecondoPR ha vinto per abbandono"]

1. d4 {[%clk 0:12:02.9]} 1... d5 {[%clk 0:07:07.1]} 2. c4 {[%clk 0:11:54.5]}
2... e5 {[%clk 0:07:07.5]} 3. dxe5 {[%clk 0:11:54.7]} 3... d4 {[%clk 0:07:08.9]}
4. Nf3 {[%clk 0:11:55]} 4... Nc6 {[%clk 0:07:10.1]} 5. a3 {[%clk 0:11:55.9]}
5... Bg4 {[%clk 0:07:10.3]} 6. b4 {[%clk 0:11:52.2]} 6... Bxf3 {[%clk
0:07:09.4]} 7. gxf3 {[%clk 0:11:40.2]} 7... Nxe5 {[%clk 0:07:09.5]} 8. Nd2
{[%clk 0:11:27.1]} 8... Qe7 {[%clk 0:07:07.7]} 9. Bg2 {[%clk 0:11:24.7]} 9...
O-O-O {[%clk 0:07:06.1]} 10. O-O {[%clk 0:11:23.5]} 10... h5 {[%clk 0:06:59.3]}
11. Qa4 {[%clk 0:11:00.4]} 11... Kb8 {[%clk 0:06:53.9]} 12. Bb2 {[%clk
0:10:40.4]} 12... h4 {[%clk 0:06:51.8]} 13. h3 {[%clk 0:10:41.9]} 13... Rh6
{[%clk 0:06:48.5]} 14. b5 {[%clk 0:10:22.3]} 14... Rg6 {[%clk 0:06:46.1]} 15.
Kh1 {[%clk 0:09:26.9]} 15... Qg5 {[%clk 0:06:32.4]} 16. b6 {[%clk 0:09:15.8]}
16... Rxb6 {[%clk 0:06:23.5]} 17. Ne4 {[%clk 0:08:58]} 17... Qf4 {[%clk
0:06:11.6]} 18. Bc1 {[%clk 0:08:45.7]} 18... Qf5 {[%clk 0:06:02.4]} 19. f4
{[%clk 0:08:19.9]} 19... Ng6 {[%clk 0:05:49.6]} 20. e3 {[%clk 0:08:11.4]} 20...
Nf6 {[%clk 0:05:39.2]} 21. Nxf6 {[%clk 0:07:54.8]} 21... gxf6 {[%clk 0:05:19.4]}
22. exd4 {[%clk 0:07:45]} 22... Nxf4 {[%clk 0:05:05.3]} 23. Be3 {[%clk
0:07:10.4]} 23... Nxg2 {[%clk 0:04:54.6]} 24. Kxg2 {[%clk 0:07:11.3]} 24... Qe4+
{[%clk 0:04:48.8]} 25. Kh2 {[%clk 0:07:08.5]} 25... Bd6+ {[%clk 0:04:45.2]} 26.
Kg1 {[%clk 0:07:07.5]} 26... Rg8+ {[%clk 0:04:43.1]} 0-1

[Event "Rapid della Domenica"]
[Site "Chess.com"]
[Date "2020.05.24"]
[Round "3"]
[White "Mrtre7"]
[Black "OMatteoWuO"]
[Result "1-0"]
[WhiteElo "1422"]
[BlackElo "1221"]
[TimeControl "720+3"]
[EndTime "7:11:45 PDT"]
[Termination "Mrtre7 ha vinto per scaccomatto"]

1. d4 {[%clk 0:12:02.9]} 1... Nf6 {[%clk 0:11:59.7]} 2. c4 {[%clk 0:12:04.5]}
2... g6 {[%clk 0:11:59.2]} 3. Nc3 {[%clk 0:12:06.4]} 3... Bg7 {[%clk 0:11:56.8]}
4. e4 {[%clk 0:12:08]} 4... d6 {[%clk 0:11:58.9]} 5. Nf3 {[%clk 0:12:09.7]} 5...
Nbd7 {[%clk 0:11:58.7]} 6. Be2 {[%clk 0:12:11.3]} 6... O-O {[%clk 0:12:00.3]} 7.
O-O {[%clk 0:12:13]} 7... a5 {[%clk 0:12:00.8]} 8. Be3 {[%clk 0:10:52.8]} 8...
e5 {[%clk 0:12:00.5]} 9. d5 {[%clk 0:10:53.9]} 9... Nc5 {[%clk 0:12:00.5]} 10.
Bxc5 {[%clk 0:10:48.1]} 10... dxc5 {[%clk 0:12:00]} 11. Nxe5 {[%clk 0:10:31.7]}
11... Nxe4 {[%clk 0:11:25.2]} 12. Nxf7 {[%clk 0:08:14.3]} 12... Nxc3 {[%clk
0:10:59]} 13. Nxd8 {[%clk 0:07:04.3]} 13... Nxd1 {[%clk 0:10:58.5]} 14. Ne6
{[%clk 0:05:37.9]} 14... Bxe6 {[%clk 0:10:55.5]} 15. dxe6 {[%clk 0:05:39.6]}
15... Nxb2 {[%clk 0:10:55]} 16. Rab1 {[%clk 0:05:39.4]} 16... Rfe8 {[%clk
0:10:50]} 17. Bg4 {[%clk 0:05:22.7]} 17... b6 {[%clk 0:10:37.4]} 18. Rfe1 {[%clk
0:05:05.2]} 18... Nxc4 {[%clk 0:10:37.5]} 19. Rbd1 {[%clk 0:04:46.3]} 19... Ne5
{[%clk 0:10:34.9]} 20. Bh3 {[%clk 0:04:43.1]} 20... Re7 {[%clk 0:10:27.4]} 21.
f4 {[%clk 0:04:42.1]} 21... Nc6 {[%clk 0:10:07.2]} 22. Rd7 {[%clk 0:04:32.9]}
22... Ree8 {[%clk 0:09:51.6]} 23. Rxc7 {[%clk 0:04:07]} 23... Nd4 {[%clk
0:09:45.4]} 24. e7 {[%clk 0:03:57.6]} 24... Bf6 {[%clk 0:09:45.3]} 25. Rc8
{[%clk 0:03:44.5]} 25... Kf7 {[%clk 0:08:51.2]} 26. Rc7 {[%clk 0:02:39.5]} 26...
Bxe7 {[%clk 0:08:21.3]} 27. Kf2 {[%clk 0:02:01.5]} 27... Nf5 {[%clk 0:07:57.2]}
28. g4 {[%clk 0:01:59.4]} 28... Nd4 {[%clk 0:07:49.6]} 29. f5 {[%clk 0:02:00.5]}
29... g5 {[%clk 0:07:30.6]} 30. Bg2 {[%clk 0:01:54.4]} 30... Kf8 {[%clk
0:07:15.9]} 31. Bxa8 {[%clk 0:01:50.7]} 31... Rxa8 {[%clk 0:07:15.9]} 32. Rexe7
{[%clk 0:01:50.5]} 32... Nb5 {[%clk 0:07:10.4]} 33. Rb7 {[%clk 0:01:51.1]} 33...
Rd8 {[%clk 0:07:00.2]} 34. Rxh7 {[%clk 0:01:47.3]} 34... Rd2+ {[%clk 0:07:00.5]}
35. Ke1 {[%clk 0:01:38.6]} 35... Rxa2 {[%clk 0:06:58.3]} 36. Rh8# {[%clk
0:01:38.8]} 1-0

[Event "Rapid della Domenica"]
[Site "Chess.com"]
[Date "2020.05.24"]
[Round "3"]
[White "Carbon"]
[Black "toninoiuorio"]
[Result "0-1"]
[WhiteElo "1755"]
[BlackElo "1517"]
[TimeControl "720+3"]
[EndTime "7:16:26 PDT"]
[Termination "toninoiuorio ha vinto per abbandono"]

1. e4 {[%clk 0:12:01.3]} 1... c5 {[%clk 0:12:01.1]} 2. Nf3 {[%clk 0:12:01.9]}
2... e6 {[%clk 0:12:03.4]} 3. c3 {[%clk 0:11:52.8]} 3... Nf6 {[%clk 0:11:38.9]}
4. d3 {[%clk 0:11:44]} 4... d5 {[%clk 0:11:29.9]} 5. e5 {[%clk 0:11:40.9]} 5...
Nfd7 {[%clk 0:11:27.7]} 6. d4 {[%clk 0:11:40.8]} 6... Nc6 {[%clk 0:11:25.6]} 7.
Be3 {[%clk 0:11:31.4]} 7... Be7 {[%clk 0:11:12.6]} 8. Be2 {[%clk 0:11:25]} 8...
O-O {[%clk 0:11:08.5]} 9. O-O {[%clk 0:11:26.6]} 9... b6 {[%clk 0:11:05.3]} 10.
Nbd2 {[%clk 0:11:07.2]} 10... h6 {[%clk 0:10:59.7]} 11. a3 {[%clk 0:11:01.4]}
11... Qe8 {[%clk 0:10:54.7]} 12. b4 {[%clk 0:10:55.7]} 12... a6 {[%clk
0:10:48.3]} 13. Nb3 {[%clk 0:10:07]} 13... cxd4 {[%clk 0:10:40.2]} 14. cxd4
{[%clk 0:10:03.3]} 14... b5 {[%clk 0:10:34.3]} 15. Rc1 {[%clk 0:09:58.7]} 15...
Nb6 {[%clk 0:10:20]} 16. Nc5 {[%clk 0:09:37.1]} 16... Nc4 {[%clk 0:09:46.3]} 17.
Bxc4 {[%clk 0:09:35.7]} 17... dxc4 {[%clk 0:09:41]} 18. d5 {[%clk 0:09:24.7]}
18... exd5 {[%clk 0:09:34.5]} 19. Qxd5 {[%clk 0:09:08.4]} 19... a5 {[%clk
0:09:21.2]} 20. Nd4 {[%clk 0:07:45]} 20... Bxc5 {[%clk 0:09:12.5]} 21. Nxc6
{[%clk 0:07:24.6]} 21... Bxe3 {[%clk 0:09:03.4]} 22. Rce1 {[%clk 0:06:15.9]}
22... Be6 {[%clk 0:08:51]} 23. Qf3 {[%clk 0:05:50.3]} 23... Bd7 {[%clk 0:08:34]}
24. Nxa5 {[%clk 0:05:47.6]} 24... Bb6 {[%clk 0:08:23.1]} 25. Qc3 {[%clk
0:05:32.4]} 25... Qe6 {[%clk 0:08:02.3]} 26. Kh1 {[%clk 0:05:32.8]} 26... Qe7
{[%clk 0:07:49.3]} 27. f4 {[%clk 0:05:24.3]} 27... Bxa5 {[%clk 0:07:18.1]} 28.
bxa5 {[%clk 0:05:25]} 28... Ra6 {[%clk 0:07:01.2]} 29. f5 {[%clk 0:05:14.8]}
29... Qc5 {[%clk 0:06:46.6]} 30. Rd1 {[%clk 0:04:36.1]} 30... Bc6 {[%clk
0:06:42.5]} 31. Rd6 {[%clk 0:04:13.5]} 31... Bb7 {[%clk 0:06:24.5]} 32. Rxa6
{[%clk 0:03:57]} 32... Bxa6 {[%clk 0:06:25.5]} 33. Qg3 {[%clk 0:03:57.8]} 33...
Re8 {[%clk 0:06:12.4]} 34. f6 {[%clk 0:03:49]} 34... g6 {[%clk 0:06:11.2]} 35.
Qf4 {[%clk 0:03:21.9]} 35... Kh7 {[%clk 0:06:04.7]} 36. Re1 {[%clk 0:03:18.7]}
36... c3 {[%clk 0:06:02.5]} 37. e6 {[%clk 0:03:06.1]} 37... fxe6 {[%clk
0:05:54.2]} 38. f7 {[%clk 0:02:43.2]} 38... Rf8 {[%clk 0:05:51.4]} 39. Rxe6
{[%clk 0:02:31.1]} 39... Qd5 {[%clk 0:05:14.3]} 40. Rf6 {[%clk 0:00:50.4]} 40...
Qd1+ {[%clk 0:05:05.9]} 41. Qf1 {[%clk 0:00:51.8]} 41... Qxf1+ {[%clk
0:05:07.3]} 42. Rxf1 {[%clk 0:00:53.2]} 42... b4 {[%clk 0:05:07.6]} 43. Rc1
{[%clk 0:00:52.2]} 43... Rxf7 {[%clk 0:05:04.8]} 44. axb4 {[%clk 0:00:53]} 44...
c2 {[%clk 0:05:06.3]} 45. h3 {[%clk 0:00:49.9]} 45... Bd3 {[%clk 0:05:07.8]} 46.
Kh2 {[%clk 0:00:50.6]} 46... Rb7 {[%clk 0:05:09.2]} 47. a6 {[%clk 0:00:49.4]}
47... Rxb4 {[%clk 0:05:06.1]} 48. a7 {[%clk 0:00:48.5]} 48... Ra4 {[%clk
0:05:07.2]} 0-1

[Event "Rapid della Domenica"]
[Site "Chess.com"]
[Date "2020.05.24"]
[Round "4"]
[White "crippo"]
[Black "toninoiuorio"]
[Result "0-1"]
[WhiteElo "1561"]
[BlackElo "1550"]
[TimeControl "720+3"]
[EndTime "7:28:11 PDT"]
[Termination "toninoiuorio ha vinto per abbandono"]

1. e4 {[%clk 0:12:02.9]} 1... c5 {[%clk 0:11:55]} 2. Nc3 {[%clk 0:12:03.7]} 2...
e6 {[%clk 0:11:56.8]} 3. Nf3 {[%clk 0:12:03.7]} 3... d6 {[%clk 0:11:29.1]} 4.
Be2 {[%clk 0:12:02.8]} 4... Nf6 {[%clk 0:11:24.8]} 5. d3 {[%clk 0:12:03.5]} 5...
Nc6 {[%clk 0:11:22.2]} 6. Bg5 {[%clk 0:12:04.4]} 6... Be7 {[%clk 0:11:18.6]} 7.
O-O {[%clk 0:12:04.8]} 7... Nd4 {[%clk 0:11:15.2]} 8. Nxd4 {[%clk 0:12:04.3]}
8... cxd4 {[%clk 0:11:16.7]} 9. Nb1 {[%clk 0:12:04.8]} 9... Bd7 {[%clk
0:11:05.9]} 10. Nd2 {[%clk 0:12:05.8]} 10... h6 {[%clk 0:10:56.8]} 11. Bh4
{[%clk 0:12:06.6]} 11... O-O {[%clk 0:10:53.6]} 12. b3 {[%clk 0:12:06.8]} 12...
Rc8 {[%clk 0:10:50.4]} 13. a4 {[%clk 0:12:06.8]} 13... Nd5 {[%clk 0:10:44.9]}
14. exd5 {[%clk 0:12:02.8]} 14... Bxh4 {[%clk 0:10:39.7]} 15. dxe6 {[%clk
0:12:03.2]} 15... Bxe6 {[%clk 0:10:36.2]} 16. Nc4 {[%clk 0:12:00.1]} 16... Qc7
{[%clk 0:10:30.3]} 17. Bg4 {[%clk 0:11:48.9]} 17... Rce8 {[%clk 0:10:22.7]} 18.
Qf3 {[%clk 0:11:48.5]} 18... d5 {[%clk 0:10:15.9]} 19. Bxe6 {[%clk 0:11:38.9]}
19... fxe6 {[%clk 0:10:02.5]} 20. Qg4 {[%clk 0:11:39.6]} 20... Bxf2+ {[%clk
0:09:54.9]} 21. Rxf2 {[%clk 0:11:39.9]} 21... Rxf2 {[%clk 0:09:46.5]} 22. Kxf2
{[%clk 0:11:41]} 22... dxc4 {[%clk 0:09:42]} 23. bxc4 {[%clk 0:11:39.8]} 23...
Qxh2 {[%clk 0:09:32]} 24. Rf1 {[%clk 0:11:06.8]} 24... Rf8+ {[%clk 0:09:25.6]}
25. Ke2 {[%clk 0:11:08.5]} 25... Qe5+ {[%clk 0:09:16.2]} 26. Qe4 {[%clk
0:11:08.7]} 26... Qxe4+ {[%clk 0:08:59.7]} 27. dxe4 {[%clk 0:11:10.2]} 27...
Rxf1 {[%clk 0:09:01.7]} 28. Kxf1 {[%clk 0:11:11.6]} 28... Kf7 {[%clk 0:09:03.9]}
29. Ke2 {[%clk 0:11:13.6]} 29... g5 {[%clk 0:08:58.1]} 30. e5 {[%clk 0:11:10.3]}
30... h5 {[%clk 0:08:55]} 31. Kd3 {[%clk 0:11:12.4]} 31... h4 {[%clk 0:08:49]}
32. Kxd4 {[%clk 0:11:14.6]} 32... Kg6 {[%clk 0:08:44.8]} 33. Ke4 {[%clk
0:11:16.6]} 33... g4 {[%clk 0:08:39.9]} 34. Kf4 {[%clk 0:11:17.4]} 34... g3
{[%clk 0:08:25.5]} 35. Kg4 {[%clk 0:11:16.9]} 35... b6 {[%clk 0:08:20.7]} 36. a5
{[%clk 0:11:14.9]} 36... bxa5 {[%clk 0:08:15.2]} 37. c5 {[%clk 0:11:16.3]} 37...
h3 {[%clk 0:07:59.4]} 38. Kxg3 {[%clk 0:11:15.2]} 38... Kf7 {[%clk 0:07:47.9]}
39. c6 {[%clk 0:11:15.7]} 39... Ke7 {[%clk 0:07:27.5]} 40. gxh3 {[%clk
0:11:14.4]} 40... Kd8 {[%clk 0:07:13.4]} 41. h4 {[%clk 0:11:17.3]} 41... a4
{[%clk 0:07:07.9]} 42. h5 {[%clk 0:11:20.2]} 42... a3 {[%clk 0:06:59.6]} 43. h6
{[%clk 0:11:23.1]} 43... Kc7 {[%clk 0:06:51.2]} 44. h7 {[%clk 0:11:26]} 44... a2
{[%clk 0:06:40.4]} 45. h8=Q {[%clk 0:11:28.9]} 45... a1=Q {[%clk 0:06:13.6]} 46.
Qh1 {[%clk 0:11:31.8]} 46... Qxh1 {[%clk 0:06:02.5]} 0-1

[Event "Rapid della Domenica"]
[Site "Chess.com"]
[Date "2020.05.24"]
[Round "4"]
[White "malberici"]
[Black "laremaro"]
[Result "0-1"]
[WhiteElo "1430"]
[BlackElo "1573"]
[TimeControl "720+3"]
[EndTime "7:35:57 PDT"]
[Termination "laremaro ha vinto per abbandono"]

1. d4 {[%clk 0:12:02.9]} 1... Nf6 {[%clk 0:12:00.9]} 2. c4 {[%clk 0:12:04.4]}
2... e6 {[%clk 0:12:02.3]} 3. Nc3 {[%clk 0:12:06]} 3... d5 {[%clk 0:12:03.4]} 4.
e3 {[%clk 0:11:58.9]} 4... Be7 {[%clk 0:12:01]} 5. Nf3 {[%clk 0:12:00.7]} 5...
O-O {[%clk 0:12:02.1]} 6. cxd5 {[%clk 0:11:54.3]} 6... exd5 {[%clk 0:11:59.7]}
7. Bd3 {[%clk 0:11:55.1]} 7... c6 {[%clk 0:11:54.9]} 8. O-O {[%clk 0:11:55.2]}
8... Re8 {[%clk 0:11:57.5]} 9. Ne5 {[%clk 0:11:53.2]} 9... Nbd7 {[%clk
0:11:46.1]} 10. Ne2 {[%clk 0:11:42.6]} 10... Nf8 {[%clk 0:11:36.5]} 11. Ng3
{[%clk 0:11:41.3]} 11... Be6 {[%clk 0:10:26.9]} 12. f4 {[%clk 0:11:37.2]} 12...
c5 {[%clk 0:09:51.1]} 13. f5 {[%clk 0:11:25.3]} 13... Bc8 {[%clk 0:09:50]} 14.
b3 {[%clk 0:11:07.3]} 14... cxd4 {[%clk 0:09:30.6]} 15. exd4 {[%clk 0:11:05.5]}
15... Qb6 {[%clk 0:09:32.9]} 16. Be3 {[%clk 0:10:38.4]} 16... Bd6 {[%clk
0:09:28.8]} 17. Qf3 {[%clk 0:10:31.2]} 17... Bd7 {[%clk 0:08:54]} 18. Kh1 {[%clk
0:10:20.3]} 18... Bb5 {[%clk 0:08:49.3]} 19. h3 {[%clk 0:09:37.5]} 19... Bxd3
{[%clk 0:08:46.3]} 20. Nxd3 {[%clk 0:09:37.9]} 20... Rac8 {[%clk 0:07:29.5]} 21.
Bg1 {[%clk 0:09:37.1]} 21... Ne4 {[%clk 0:07:09.9]} 22. Ne5 {[%clk 0:09:22.6]}
22... Nd2 {[%clk 0:07:01.9]} 23. Qxd5 {[%clk 0:09:09.3]} 23... Nxf1 {[%clk
0:06:44.2]} 24. Qxf7+ {[%clk 0:09:04.8]} 24... Kh8 {[%clk 0:06:40.3]} 25. Nh5
{[%clk 0:08:59]} 25... Qc7 {[%clk 0:06:05.8]} 26. Rxf1 {[%clk 0:08:18.4]} 26...
Bxe5 {[%clk 0:06:04.2]} 27. Qxc7 {[%clk 0:08:08.4]} 27... Bxc7 {[%clk
0:05:50.4]} 28. f6 {[%clk 0:08:09.6]} 28... g6 {[%clk 0:05:47]} 29. Ng7 {[%clk
0:08:05]} 29... Re2 {[%clk 0:05:25.7]} 30. d5 {[%clk 0:07:55.1]} 30... Bd8
{[%clk 0:05:20.8]} 31. Bd4 {[%clk 0:07:48.7]} 31... h6 {[%clk 0:04:53.5]} 32.
Ne8 {[%clk 0:07:24.8]} 32... Rcc2 {[%clk 0:04:24.6]} 33. f7+ {[%clk 0:06:52.6]}
33... Kh7 {[%clk 0:04:23.8]} 34. Nf6+ {[%clk 0:06:34.4]} 34... Bxf6 {[%clk
0:04:19.1]} 35. Bxf6 {[%clk 0:06:32.8]} 35... Rxg2 {[%clk 0:04:16.5]} 36. Re1
{[%clk 0:06:27.2]} 36... Rh2+ {[%clk 0:04:12.6]} 37. Kg1 {[%clk 0:06:21.7]}
37... Rcg2+ {[%clk 0:04:15]} 38. Kf1 {[%clk 0:06:20.1]} 38... Rh1+ {[%clk
0:04:05.3]} 39. Kxg2 {[%clk 0:06:16.5]} 39... Rxe1 {[%clk 0:04:07.7]} 40. d6
{[%clk 0:06:16.8]} 40... Rd1 {[%clk 0:03:59.5]} 41. Be7 {[%clk 0:06:17.4]} 41...
Kg7 {[%clk 0:04:01.2]} 0-1

[Event "Rapid della Domenica"]
[Site "Chess.com"]
[Date "2020.05.24"]
[Round "4"]
[White "OMatteoWuO"]
[Black "fausto2p"]
[Result "0-1"]
[WhiteElo "1210"]
[BlackElo "1195"]
[TimeControl "720+3"]
[EndTime "7:36:16 PDT"]
[Termination "fausto2p ha vinto per abbandono"]

1. d4 {[%clk 0:12:02.9]} 1... d5 {[%clk 0:12:00.1]} 2. c4 {[%clk 0:12:02.8]}
2... c6 {[%clk 0:12:01.5]} 3. Nc3 {[%clk 0:11:58.3]} 3... Nf6 {[%clk 0:12:02]}
4. Nf3 {[%clk 0:11:58.4]} 4... dxc4 {[%clk 0:12:03.6]} 5. e3 {[%clk 0:11:59.3]}
5... b5 {[%clk 0:12:03.4]} 6. a4 {[%clk 0:11:58.2]} 6... Qa5 {[%clk 0:11:09.5]}
7. Bd2 {[%clk 0:11:53.1]} 7... b4 {[%clk 0:10:58.7]} 8. Na2 {[%clk 0:11:46]}
8... c3 {[%clk 0:10:04.7]} 9. bxc3 {[%clk 0:11:39]} 9... b3 {[%clk 0:09:52.5]}
10. Qxb3 {[%clk 0:11:12.5]} 10... Ne4 {[%clk 0:09:30.6]} 11. Ne5 {[%clk
0:10:48.2]} 11... Nxd2 {[%clk 0:09:29.2]} 12. Qxf7+ {[%clk 0:10:47]} 12... Kd8
{[%clk 0:09:24.3]} 13. Kxd2 {[%clk 0:10:43]} 13... Qxa4 {[%clk 0:09:11.7]} 14.
Bc4 {[%clk 0:10:19.3]} 14... Qa3 {[%clk 0:08:27.3]} 15. Nb4 {[%clk 0:09:57]}
15... Qb2+ {[%clk 0:08:23.3]} 16. Kd3 {[%clk 0:09:49.5]} 16... g6 {[%clk
0:08:20.8]} 17. Nbxc6+ {[%clk 0:09:44.6]} 17... Nxc6 {[%clk 0:08:18.4]} 18.
Nxc6+ {[%clk 0:07:57.4]} 18... Kc7 {[%clk 0:08:09.1]} 19. Nxe7 {[%clk
0:07:33.4]} 19... Bxe7 {[%clk 0:07:31.6]} 20. Qxe7+ {[%clk 0:07:32.3]} 20... Kc6
{[%clk 0:07:18]} 21. Ra6+ {[%clk 0:07:31.8]} 21... Bxa6 {[%clk 0:07:11.9]} 22.
Qc5+ {[%clk 0:07:29.7]} 22... Kd7 {[%clk 0:06:56.4]} 23. Bxa6 {[%clk 0:07:28.6]}
23... Qxf2 {[%clk 0:06:40.3]} 24. Bb5+ {[%clk 0:07:17.6]} 24... Ke6 {[%clk
0:06:28.2]} 25. Qe5+ {[%clk 0:07:08]} 25... Kf7 {[%clk 0:06:25.4]} 26. Bc4+
{[%clk 0:07:07.6]} 26... Kf8 {[%clk 0:05:58]} 27. Qd6+ {[%clk 0:06:43.5]} 27...
Kg7 {[%clk 0:05:51.5]} 28. Qe7+ {[%clk 0:06:35.7]} 28... Kh6 {[%clk 0:05:48.8]}
29. h4 {[%clk 0:06:19.1]} 29... Qf5+ {[%clk 0:05:45.4]} 30. e4 {[%clk
0:06:18.5]} 30... Qf2 {[%clk 0:05:19]} 31. Qg5+ {[%clk 0:06:14.9]} 31... Kg7
{[%clk 0:05:18.1]} 32. h5 {[%clk 0:06:11]} 32... Rhf8 {[%clk 0:04:40.8]} 33. h6+
{[%clk 0:06:09.7]} 33... Kh8 {[%clk 0:04:40.1]} 34. Qe5+ {[%clk 0:06:02.9]}
34... Rf6 {[%clk 0:04:34.8]} 35. Qd5 {[%clk 0:05:38]} 35... Qg3+ {[%clk
0:04:20.9]} 36. Kc2 {[%clk 0:05:33.3]} 36... Rf2+ {[%clk 0:04:15.5]} 37. Kb1
{[%clk 0:05:26]} 37... Rb8+ {[%clk 0:04:11.9]} 38. Bb3 {[%clk 0:05:24.5]} 38...
Qd3+ {[%clk 0:03:57]} 39. Ka1 {[%clk 0:05:09.2]} 39... Qxc3+ {[%clk 0:03:57.6]}
40. Kb1 {[%clk 0:05:02.8]} 40... Rxb3+ {[%clk 0:03:54.6]} 0-1